bitfinex/quotes_SOLUSD_20250219
["timestamp","ask_amount","ask_price","bid_price","bid_amount"]
[1740000113770,0.03,167.45,167.42,15.47876288]
[1740000114145,0.03,167.45,167.43,15.47876288]
[1740000116433,0.03,167.45,167.44,5.9722]
[1740000117845,0.03,167.45,167.42,15.47876288]
[1740000118031,0.03,167.45,167.43,21.45136288]
[1740000119158,0.03,167.45,167.44,15.47876288]
[1740000120443,0.03,167.45,167.44,21.45096288]
[1740000120962,0.03,167.45,167.44,123.17533078]
[1740000121139,0.0001,167.45,167.44,137.80197462]
[1740000121340,0.0001,167.45,167.44,139.80197462]
[1740000122367,0.03,167.51,167.48,20.0]
[1740000122545,0.03,167.51,167.5,15.47876288]
[1740000122744,0.03,167.51,167.5,109.22037512]
[1740000123235,0.03,167.51,167.5,90.57072626]
[1740000123847,0.03,167.51,167.5,109.22037512]
[1740000124649,0.03,167.51,167.5,120.74034569]
[1740000125561,0.03,167.55,167.51,18.64964886]
[1740000125762,0.03,167.55,167.53,15.42059683]
[1740000126342,0.03,167.55,167.52,15.42059683]
[1740000126539,0.03,167.55,167.53,5.969]
[1740000127876,15.45059683,167.55,167.51,80.7]
[1740000128040,15.42059683,167.54,167.51,80.7]
[1740000128362,15.45059683,167.55,167.51,80.7]
[1740000128566,0.03,167.55,167.51,102.09029683]
[1740000128872,0.03,167.55,167.51,21.39029683]
[1740000129052,0.03,167.55,167.51,5.9697]
[1740000130588,0.03,167.55,167.5,21.39069683]
[1740000132065,0.03,167.55,167.54,20.0]
[1740000132249,0.03,167.55,167.54,35.42059683]
[1740000132649,0.03,167.55,167.54,25.9687]
[1740000132959,0.03,167.55,167.51,15.42059683]
[1740000133158,15.42059683,167.56,167.51,5.9697]
[1740000134061,15.42059683,167.56,167.5,14.9253]
[1740000134346,15.42059683,167.56,167.5,20.8954]
[1740000134573,15.42059683,167.56,167.5,36.31599683]
[1740000135253,15.42059683,167.57,167.5,36.31599683]
[1740000135456,98.45059683,167.59,167.52,15.42059683]
[1740000135679,15.45059683,167.59,167.54,20.0]
[1740000136757,15.45059683,167.59,167.54,5.9687]
[1740000137774,0.03,167.59,167.58,20.0]
[1740000137957,0.03,167.59,167.58,35.42059683]
[1740000138151,0.03,167.62,167.58,135.77024569]
[1740000138350,0.03,167.62,167.61,15.42059683]
[1740000138781,0.03,167.62,167.61,21.38679683]
[1740000138969,0.03,167.62,167.61,40.03644569]
[1740000139175,220.33,167.68,167.61,41.03644569]
[1740000139176,0.03,167.68,167.61,41.03644569]
[1740000139363,0.03,167.68,167.63,15.42059683]
[1740000139669,0.03,167.68,167.64,35.42059683]
[1740000140263,0.03,167.68,167.65,34.07024569]
[1740000140466,0.03,167.68,167.66,15.42059683]
[1740000141072,0.03,167.68,167.67,21.38459683]
[1740000141467,0.03,167.68,167.67,120.73424569]
[1740000141776,0.03,167.68,167.67,86.664]
[1740000141963,0.03,167.68,167.67,102.08459683]
[1740000142559,0.03,167.68,167.67,120.73424569]
[1740000143267,0.03,167.68,167.67,80.7]
[1740000143861,0.03,167.68,167.67,86.664]
[1740000144052,0.03,167.68,167.67,102.08459683]
[1740000144452,0.03,167.68,167.67,86.664]
[1740000146559,0.03,167.68,167.65,5.9645]
[1740000146766,0.03,167.68,167.64,100.7]
[1740000146967,0.03,167.68,167.64,106.6651]
[1740000148558,0.03,167.68,167.62,5.9656]
[1740000148559,15.42059683,167.67,167.62,5.9656]
[1740000148854,15.42059683,167.66,167.62,5.9656]
[1740000149409,15.42059683,167.63,167.58,5.9672]
[1740000149684,15.42059683,167.61,167.56,5.968]
[1740000150183,15.42059683,167.61,167.55,196.80879683]
[1740000150367,15.42059683,167.61,167.55,100.6882]
[1740000150566,15.42059683,167.6,167.55,100.6882]
[1740000150777,15.42059683,167.59,167.55,5.9682]
[1740000151183,15.42059683,167.58,167.54,0.063]
[1740000151606,15.42059683,167.55,167.54,0.063]
[1740000152094,83.0,167.59,167.54,0.063]
[1740000152268,15.42059683,167.58,167.54,0.063]
[1740000152778,15.42059683,167.57,167.54,0.063]
[1740000153789,15.42059683,167.58,167.54,0.063]
[1740000153979,98.42059683,167.59,167.54,0.063]
[1740000154388,15.42059683,167.58,167.54,0.063]
[1740000154884,15.42059683,167.57,167.54,0.063]
[1740000155482,15.42059683,167.56,167.54,0.063]
[1740000155686,15.42059683,167.55,167.54,0.063]
[1740000156194,27.79779683,167.55,167.54,0.063]
[1740000157068,165.09779683,167.55,167.54,0.063]
[1740000158571,152.72059683,167.55,167.54,0.063]
[1740000158779,137.3,167.55,167.54,0.063]
[1740000159767,20.00059683,167.58,167.54,0.063]
[1740000160473,4.58,167.58,167.54,0.063]
[1740000160797,15.42059683,167.59,167.54,0.063]
[1740000160968,98.42059683,167.59,167.54,0.063]
[1740000161787,98.42059683,167.59,167.54,6.0317]
[1740000162183,83.0,167.59,167.54,6.0317]
[1740000162707,83.0,167.59,167.54,21.45229683]
[1740000162910,83.0,167.59,167.54,15.48359683]
[1740000163112,83.0,167.59,167.54,0.063]
[1740000163113,15.42059683,167.58,167.54,0.063]
[1740000164695,98.42059683,167.59,167.54,0.063]
[1740000166425,98.42059683,167.59,167.54,15.48359683]
[1740000166426,83.0,167.59,167.54,15.48359683]
[1740000166594,83.0,167.59,167.55,21.38889683]
[1740000167109,83.0,167.59,167.54,21.45219683]
[1740000167431,15.42059683,167.6,167.54,21.45219683]
[1740000171411,93.5759,167.62,167.54,20.063]
[1740000171618,15.42059683,167.6,167.54,15.48359683]
[1740000173011,15.42059683,167.6,167.55,5.9683]
[1740000173196,93.5759,167.62,167.55,21.38889683]
[1740000173197,15.42059683,167.61,167.55,21.38889683]
[1740000173401,83.03,167.62,167.57,15.42059683]
[1740000175099,83.03,167.62,167.58,5.9672]
[1740000175815,0.03,167.62,167.59,16.98589683]
[1740000176127,0.03,167.62,167.61,35.42059683]
[1740000176800,0.03,167.66,167.61,134.77024569]
[1740000177014,0.03,167.66,167.65,21.38539683]
[1740000177518,0.03,167.66,167.65,22.97599683]
[1740000178504,0.03,167.66,167.65,7.5554]
[1740000181109,0.03,167.66,167.65,22.97599683]
[1740000184469,0.03,167.66,167.65,7.5554]
[1740000184614,0.03,167.66,167.65,22.97599683]
[1740000185101,0.03,167.66,167.65,7.5554]
[1740000185521,0.03,167.66,167.65,22.97599683]
[1740000191528,0.03,167.66,167.65,21.38539683]
[1740000192654,0.03,167.66,167.65,5.9648]
[1740000192831,0.03,167.66,167.65,35.42059683]
[1740000194932,0.03,167.66,167.65,41.38539683]
[1740000195155,0.0001,167.66,167.65,140.73504569]
[1740000198641,0.0001,167.66,167.65,141.16083392]
[1740000198846,0.0001,167.68,167.65,136.16583392]
[1740000199139,0.0001,167.68,167.67,28.50103392]
[1740000200142,0.0001,167.68,167.67,90.55138506]
[1740000200340,0.0001,167.68,167.67,109.20103392]
[1740000200839,0.0001,167.68,167.67,115.16503392]
[1740000201138,0.0001,167.68,167.67,116.70003392]
[1740000201678,0.0001,167.68,167.67,119.65385984]
[1740000202539,0.0001,167.68,167.67,125.64885984]
[1740000202762,0.0001,167.68,167.67,119.65385984]
[1740000203869,0.0001,167.68,167.67,125.64885984]
[1740000204229,0.0001,167.68,167.67,166.05440008]
[1740000204527,0.0001,167.68,167.67,167.05440008]
[1740000204737,0.03,167.72,167.71,20.0]
[1740000204989,0.03,167.72,167.71,129.20103392]
[1740000205124,0.03,167.76,167.71,129.20103392]
[1740000205326,0.03,167.76,167.74,9.85138506]
[1740000205523,0.03,167.76,167.71,119.34964886]
[1740000206058,0.03,167.76,167.74,9.85138506]
[1740000206223,0.03,167.76,167.75,9.85138506]
[1740000206640,0.03,167.76,167.75,15.81258506]
[1740000211236,0.03,167.76,167.74,15.81278506]
[1740000212072,0.03,167.76,167.75,9.85138506]
[1740000214267,0.03,167.76,167.75,15.81258506]
[1740000214772,0.03,167.76,167.75,21.3374986]
[1740000217956,0.03,167.76,167.75,102.0374986]
[1740000218558,0.03,167.76,167.75,120.68714746]
[1740000218865,0.03,167.76,167.75,126.68214746]
[1740000219068,0.03,167.76,167.75,131.26214746]
[1740000221145,0.03,167.76,167.75,112.6124986]
[1740000225972,0.0001,167.79,167.78,25.995]
[1740000226182,0.0001,167.79,167.78,60.02094746]
[1740000226474,0.0001,167.79,167.78,61.02094746]
[1740000226779,0.0001,167.79,167.78,141.72094746]
[1740000226987,0.0001,167.79,167.78,144.15910745]
[1740000227349,0.0001,167.79,167.78,145.71320745]
[1740000227549,0.0001,167.79,167.78,146.71320745]
[1740000227785,0.0001,167.79,167.78,155.6276358]
[1740000228049,0.0001,167.79,167.78,147.6326358]
[1740000228266,0.0001,167.79,167.78,149.6326358]
[1740000228774,0.0001,167.79,167.78,173.5576358]
[1740000229274,0.0001,167.83,167.82,25.995]
[1740000229471,0.0001,167.83,167.82,145.30094746]
[1740000229676,0.0001,167.83,167.82,151.25964746]
[1740000230069,0.0001,167.83,167.82,152.25964746]
[1740000231097,0.0001,167.83,167.82,151.25964746]
[1740000231273,8.0302,167.92,167.82,168.15654746]
[1740000231474,23.4064986,167.92,167.86,15.3762986]
[1740000231673,23.4064986,167.92,167.86,21.3332986]
[1740000233598,23.4064986,167.92,167.86,15.3762986]
[1740000235182,15.3762986,167.89,167.83,21.3346986]
[1740000235495,15.3762986,167.87,167.83,5.9584]
[1740000235987,15.3762986,167.85,167.81,5.9588]
[1740000236371,15.3762986,167.86,167.81,5.9588]
[1740000236562,92.83528835,167.87,167.81,15.79408835]
[1740000238968,9.83528835,167.85,167.79,35.79508835]
[1740000239186,83.0,167.87,167.79,50.69458835]
[1740000239369,9.83528835,167.86,167.8,9.83528835]
[1740000239795,9.83528835,167.86,167.81,5.9591]
[1740000240171,92.83528835,167.87,167.81,15.79438835]
[1740000240690,9.83528835,167.86,167.81,5.9591]
[1740000240872,9.83528835,167.85,167.81,5.9591]
[1740000241487,9.83528835,167.86,167.81,5.9591]
[1740000241667,83.0,167.87,167.84,9.83528835]
[1740000241871,137.33,167.88,167.85,9.83528835]
[1740000241872,0.03,167.88,167.85,9.83528835]
[1740000242074,0.03,167.88,167.86,9.83528835]
[1740000242476,0.03,167.88,167.87,9.83528835]
[1740000242682,0.03,167.88,167.87,35.35191409]
[1740000243295,0.03,167.93,167.87,35.35191409]
[1740000243494,0.03,167.93,167.89,15.35191409]
[1740000243899,0.03,167.93,167.88,35.35191409]
[1740000244277,0.03,167.93,167.89,35.35191409]
[1740000245992,0.03,167.93,167.9,5.9559]
[1740000248914,0.03,167.93,167.89,25.9561]
[1740000250820,15.38191409,167.93,167.89,5.9561]
[1740000251385,0.03,167.93,167.9,15.35191409]
[1740000251599,0.03,167.93,167.91,15.35191409]
[1740000251825,0.03,167.93,167.9,15.35191409]
[1740000252406,0.03,167.93,167.91,5.9555]
[1740000252590,0.03,167.93,167.91,21.30741409]
[1740000253089,0.03,167.93,167.91,5.9555]
[1740000254221,0.03,167.93,167.91,21.30741409]
[1740000256610,0.03,167.93,167.9,15.35191409]
[1740000256801,15.38191409,167.93,167.87,0.063]
[1740000257001,15.38191409,167.93,167.87,15.41491409]
[1740000257520,0.03,167.93,167.87,15.41491409]
[1740000257700,0.03,167.93,167.91,15.35191409]
[1740000258008,0.03,167.93,167.88,46.843]
[1740000258247,0.03,167.93,167.88,56.19991409]
[1740000259013,15.35191409,167.92,167.88,5.9565]
[1740000259413,15.35191409,167.91,167.88,5.9565]
[1740000259915,15.35191409,167.91,167.87,86.7199]
[1740000260107,15.35191409,167.91,167.87,6.0199]
[1740000261200,98.35191409,167.92,167.87,6.0199]
[1740000261818,98.35191409,167.92,167.87,0.063]
[1740000262718,92.82863376,167.92,167.87,0.063]
[1740000265402,83.0,167.91,167.87,0.063]
[1740000266507,83.0,167.9,167.87,0.063]
[1740000266699,92.82863376,167.9,167.87,0.063]
[1740000268111,9.82863376,167.89,167.87,0.063]
[1740000269836,9.82863376,167.88,167.87,0.063]
[1740000274458,18.64964886,167.9,167.87,0.063]
[1740000274742,147.12863376,167.91,167.87,0.063]
[1740000275653,0.03,167.88,167.87,0.063]
[1740000278334,0.03,167.88,167.87,9.89163376]
[1740000278718,0.03,167.88,167.87,15.84853376]
[1740000279709,0.03,167.88,167.87,21.84353376]
[1740000279952,0.03,167.88,167.87,15.84853376]
[1740000280646,0.03,167.88,167.87,21.84353376]
[1740000282632,0.03,167.88,167.87,15.84853376]
[1740000282839,0.03,167.88,167.87,6.0199]
[1740000285436,0.03,167.88,167.87,0.063]
[1740000290153,0.03,167.88,167.87,20.063]
[1740000290955,0.03,167.88,167.87,0.063]
[1740000291156,9.85863376,167.88,167.87,0.063]
[1740000292043,28.50828262,167.88,167.87,0.063]
[1740000292239,9.85863376,167.88,167.87,0.063]
[1740000292439,28.50828262,167.88,167.87,0.063]
[1740000295062,165.80828262,167.88,167.87,0.063]
[1740000295546,171.76488262,167.88,167.87,0.063]
[1740000296435,165.80828262,167.88,167.87,0.063]
[1740000296832,155.97964886,167.88,167.87,0.063]
[1740000297038,165.80828262,167.88,167.87,0.063]
[1740000297441,137.33,167.88,167.87,0.063]
[1740000297963,137.33,167.88,167.87,9.89163376]
[1740000297964,0.03,167.88,167.87,9.89163376]
[1740000298743,0.03,167.88,167.87,11.51883376]
[1740000299168,0.03,167.88,167.87,17.47573376]
[1740000299930,0.03,167.88,167.87,23.47073376]
[1740000300165,0.0001,167.88,167.87,17.47573376]
[1740000301231,0.0001,167.88,167.87,23.47073376]
[1740000302866,0.0001,167.88,167.87,17.47573376]
[1740000304846,0.0001,167.88,167.87,0.063]
[1740000305032,9.82873376,167.88,167.87,0.063]
[1740000306633,15.36732635,167.88,167.87,0.063]
[1740000306845,39.97357521,167.88,167.87,0.063]
[1740000310375,40.97357521,167.88,167.87,0.063]
[1740000311484,20.0,167.83,167.78,0.063]
[1740000311779,15.36722635,167.79,167.73,20.26382572]
[1740000312072,220.3,167.82,167.73,18.60222572]
[1740000312073,15.36722635,167.76,167.73,18.60222572]
[1740000312935,15.36722635,167.76,167.71,8.88259345]
[1740000313981,15.36722635,167.76,167.71,5.9626]
[1740000315463,15.36722635,167.72,167.7,0.063]
[1740000315675,15.36722635,167.71,167.7,0.063]
[1740000315864,98.36722635,167.74,167.7,0.063]
[1740000316273,98.36722635,167.74,167.7,6.026]
[1740000316472,98.36722635,167.74,167.7,0.063]
[1740000317050,15.36722635,167.73,167.7,0.063]
[1740000318071,15.36722635,167.71,167.7,0.063]
[1740000318244,34.01687521,167.71,167.7,0.063]
[1740000318770,18.64964886,167.7,167.65,0.063]
[1740000319072,15.36722635,167.67,167.65,0.063]
[1740000319440,15.36722635,167.68,167.65,0.063]
[1740000320268,15.36722635,167.67,167.65,0.063]
[1740000321091,15.36722635,167.68,167.65,0.063]
[1740000321274,224.86,167.69,167.65,0.063]
[1740000321275,235.66722635,167.69,167.65,0.063]
[1740000321881,15.36722635,167.68,167.65,0.063]
[1740000322578,15.36722635,167.67,167.65,0.063]
[1740000324282,117.01687521,167.66,167.65,0.063]
[1740000324487,34.01687521,167.66,167.65,0.063]
[1740000324693,39.98127521,167.66,167.65,0.063]
[1740000325183,18.64964886,167.64,167.62,0.063]
[1740000325368,15.36722635,167.63,167.62,0.063]
[1740000325769,19.92722635,167.64,167.62,0.063]
[1740000325975,15.36722635,167.65,167.62,0.063]
[1740000327791,98.36722635,167.65,167.62,0.063]
[1740000328173,83.0,167.65,167.64,20.0]
[1740000328381,83.0,167.65,167.64,35.36722635]
[1740000328683,83.0,167.65,167.64,20.0]
[1740000329289,83.0,167.65,167.64,25.9651]
[1740000332075,137.3,167.68,167.64,25.9651]
[1740000332076,15.36722635,167.7,167.64,56.24522635]
[1740000332268,83.0,167.71,167.68,15.36722635]
[1740000332467,83.0,167.71,167.69,5.9633]
[1740000332692,83.0,167.71,167.69,21.33052635]
[1740000332879,0.03,167.74,167.7,15.36722635]
[1740000333976,0.03,167.74,167.69,21.33052635]
[1740000334372,0.03,167.74,167.7,0.063]
[1740000337800,15.36722635,167.73,167.7,0.063]
[1740000337997,15.36722635,167.72,167.7,0.063]
[1740000340291,5.9916,167.74,167.7,0.063]
[1740000340292,98.36722635,167.71,167.7,0.063]
[1740000340875,83.0,167.71,167.7,0.063]
[1740000341277,0.03,167.74,167.7,0.063]
[1740000341492,0.03,167.74,167.7,15.43022635]
[1740000341688,0.03,167.74,167.7,0.063]
[1740000343174,0.03,167.74,167.7,6.026]
[1740000343375,15.39722635,167.74,167.7,6.026]
[1740000343582,0.03,167.74,167.7,6.026]
[1740000344792,15.36722635,167.73,167.7,6.026]
[1740000345096,15.36722635,167.73,167.7,0.063]
[1740000345401,0.03,167.74,167.7,0.063]
[1740000345702,83.0,167.73,167.7,0.063]
[1740000346489,83.0,167.73,167.7,6.026]
[1740000357807,83.0,167.73,167.7,20.9335]
[1740000358014,83.0,167.73,167.7,36.30072635]
[1740000358201,0.03,167.74,167.72,15.36722635]
[1740000358515,0.03,167.74,167.73,35.36722635]
[1740000358909,0.03,167.74,167.73,41.32912635]
[1740000359423,0.03,167.74,167.73,20.0]
[1740000359604,0.03,167.74,167.71,5.9625]
[1740000360105,0.03,167.73,167.71,5.9625]
[1740000360494,0.03,167.73,167.72,20.0]
[1740000361821,0.03,167.73,167.72,5.9623]
[1740000362713,0.03,167.73,167.72,21.32952635]
[1740000364213,0.03,167.74,167.72,102.02952635]
[1740000364411,0.03,167.74,167.73,15.36722635]
[1740000364994,0.03,167.74,167.73,21.32912635]
[1740000366916,83.0,167.82,167.76,20.0]
[1740000367219,83.0,167.82,167.78,15.36722635]
[1740000367723,83.0,167.82,167.77,15.36722635]
[1740000368103,83.0,167.82,167.78,5.9601]
[1740000369330,98.36722635,167.82,167.78,5.9601]
[1740000369539,15.36722635,167.8,167.77,5.9604]
[1740000370227,98.36722635,167.82,167.77,5.9604]
[1740000370823,15.36722635,167.81,167.77,5.9604]
[1740000371325,15.36722635,167.8,167.77,5.9604]
[1740000371808,15.36722635,167.8,167.73,15.36722635]
[1740000372003,15.36722635,167.79,167.74,5.9616]
[1740000372325,15.36722635,167.8,167.74,21.32882635]
[1740000372730,15.36722635,167.79,167.74,5.9616]
[1740000372919,15.36722635,167.8,167.74,5.9616]
[1740000373122,15.36722635,167.8,167.74,21.32882635]
[1740000375426,15.36722635,167.78,167.74,5.9616]
[1740000376728,15.36722635,167.75,167.71,5.9626]
[1740000376914,15.36722635,167.74,167.71,5.9626]
[1740000377119,15.36722635,167.75,167.71,5.9626]
[1740000377715,98.36722635,167.76,167.71,5.9626]
[1740000378410,83.0,167.76,167.71,36.23642635]
[1740000380436,83.0,167.76,167.71,5.9626]
[1740000380437,98.36722635,167.76,167.71,5.9626]
[1740000381348,98.36722635,167.76,167.7,6.026]
[1740000382441,98.36722635,167.76,167.7,36.30072635]
[1740000383637,98.39722635,167.76,167.7,36.30072635]
[1740000383943,83.03,167.76,167.7,36.30072635]
[1740000384835,83.03,167.76,167.7,20.9335]
[1740000385134,83.03,167.76,167.74,15.36722635]
[1740000385636,0.03,167.76,167.74,15.36722635]
[1740000386717,0.03,167.76,167.75,5.9612]
[1740000389822,0.03,167.76,167.75,21.32842635]
[1740000390861,83.0,167.85,167.78,20.0]
[1740000391153,83.0,167.85,167.82,15.36722635]
[1740000391315,83.0,167.87,167.79,20.0]
[1740000391517,15.36722635,167.83,167.76,80.7]
[1740000391781,83.0,167.87,167.75,28.7596]
[1740000391782,15.36722635,167.81,167.75,29.22372635]
[1740000391931,15.36722635,167.8,167.75,7.5208]
[1740000392235,220.3,167.85,167.75,22.88802635]
[1740000392437,15.36722635,167.84,167.77,15.36722635]
[1740000392744,83.0,167.85,167.8,15.36722635]
[1740000394153,83.0,167.85,167.81,5.9591]
[1740000395036,83.0,167.85,167.8,21.32662635]
[1740000395233,83.0,167.85,167.79,15.36722635]
[1740000395455,98.36722635,167.85,167.79,5.9597]
[1740000395833,98.36722635,167.85,167.79,21.32692635]
[1740000396070,83.0,167.84,167.79,21.32692635]
[1740000396551,83.0,167.84,167.82,20.0]
[1740000396772,83.0,167.84,167.83,35.36722635]
[1740000397473,0.03,167.85,167.83,35.36722635]
[1740000398780,0.03,167.85,167.84,21.32522635]
[1740000412577,0.03,167.85,167.84,15.78691135]
[1740000415301,0.03,167.85,167.84,21.76491135]
[1740000418167,0.03,167.85,167.84,15.78691135]
[1740000419889,0.03,167.85,167.84,5.958]
[1740000420275,9.85891135,167.85,167.8,5.9594]
[1740000420988,9.82891135,167.83,167.8,5.9594]
[1740000421792,83.0,167.82,167.78,5.9601]
[1740000422178,9.82891135,167.79,167.76,0.063]
[1740000422335,92.82891135,167.78,167.76,0.063]
[1740000423198,92.82891135,167.77,167.76,0.063]
[1740000423797,83.0,167.77,167.76,0.063]
[1740000424485,92.82891135,167.77,167.76,0.063]
[1740000424686,98.3843404,167.77,167.76,0.063]
[1740000425687,104.7001404,167.77,167.76,0.063]
[1740000428879,21.7001404,167.77,167.76,0.063]
[1740000430797,21.7301404,167.77,167.76,0.063]
[1740000431100,40.37978926,167.77,167.76,0.063]
[1740000432190,15.4143404,167.77,167.76,0.063]
[1740000446631,9.87814167,167.77,167.76,0.063]
[1740000450225,34.48829053,167.77,167.76,0.063]
[1740000450807,9.87814167,167.77,167.76,0.063]
[1740000452813,15.83864167,167.77,167.76,0.063]
[1740000453121,34.48829053,167.77,167.76,0.063]
[1740000455222,34.48829053,167.77,167.7,0.063]
[1740000455223,19.64964886,167.76,167.7,0.063]
[1740000455405,9.84814167,167.71,167.7,0.063]
[1740000456359,28.49779053,167.71,167.7,0.063]
[1740000456839,29.49779053,167.71,167.7,0.063]
[1740000457130,28.49779053,167.71,167.7,0.063]
[1740000457516,9.84814167,167.71,167.7,0.063]
[1740000460730,9.84814167,167.72,167.7,0.063]
[1740000461038,147.14814167,167.74,167.7,0.063]
[1740000461248,137.3,167.74,167.7,0.063]
[1740000461540,137.3,167.74,167.7,9.91114167]
[1740000462048,14.43814167,167.77,167.7,9.91114167]
[1740000463036,9.84814167,167.76,167.7,9.91114167]
[1740000463245,9.84814167,167.76,167.7,15.87384167]
[1740000465048,9.84814167,167.76,167.7,6.0257]
[1740000466647,4.59,167.77,167.71,9.84814167]
[1740000467023,83.0,167.76,167.72,9.84814167]
[1740000467549,83.0,167.76,167.73,9.84814167]
[1740000468526,83.0,167.76,167.72,9.84814167]
[1740000469248,83.0,167.76,167.73,5.9619]
[1740000470632,83.0,167.76,167.73,9.84814167]
[1740000471426,83.0,167.76,167.74,11.41464167]
[1740000471634,0.03,167.77,167.74,11.41464167]
[1740000473055,0.03,167.77,167.75,5.9612]
[1740000473354,0.03,167.77,167.75,15.80934167]
[1740000474450,0.03,167.77,167.76,9.84814167]
[1740000475357,0.03,167.77,167.76,15.80894167]
[1740000476524,83.0,167.84,167.79,20.0]
[1740000476831,83.0,167.84,167.8,9.84814167]
[1740000477852,83.0,167.84,167.81,5.9591]
[1740000480448,83.0,167.84,167.79,29.84814167]
[1740000480749,83.0,167.84,167.8,5.9593]
[1740000481252,92.84814167,167.84,167.77,9.84814167]
[1740000481442,9.84814167,167.82,167.76,5.9608]
[1740000481635,9.84814167,167.81,167.76,5.9608]
[1740000482248,83.0,167.8,167.76,5.9608]
[1740000482565,83.0,167.8,167.74,1.5665]
[1740000482767,83.0,167.8,167.75,5.9612]
[1740000483583,83.0,167.79,167.75,5.9612]
[1740000483865,83.0,167.79,167.75,15.80934167]
[1740000484602,83.0,167.79,167.77,9.84814167]
[1740000484859,83.0,167.79,167.78,5.9601]
[1740000485965,83.0,167.79,167.77,5.9604]
[1740000486164,83.0,167.79,167.75,5.9609]
[1740000488460,9.84814167,167.77,167.73,0.063]
[1740000489540,92.84814167,167.78,167.73,0.063]
[1740000494155,83.0,167.77,167.73,0.063]
[1740000496171,83.0,167.77,167.75,9.84814167]
[1740000496495,9.84814167,167.83,167.76,9.84814167]
[1740000496846,230.14814167,167.84,167.78,9.84814167]
[1740000497051,0.03,167.85,167.8,9.84814167]
[1740000497647,0.03,167.85,167.79,9.84814167]
[1740000497860,0.03,167.85,167.79,15.80774167]
[1740000498464,0.03,167.85,167.8,9.84814167]
[1740000499156,0.03,167.85,167.81,9.84814167]
[1740000499572,0.03,167.85,167.81,15.80704167]
[1740000502676,0.03,167.85,167.82,9.84814167]
[1740000503374,0.03,167.85,167.82,15.80654167]
[1740000503756,0.03,167.85,167.82,9.84814167]
[1740000504054,0.03,167.85,167.8,15.80724167]
[1740000505785,0.03,167.85,167.79,15.80794167]
[1740000506495,9.84814167,167.84,167.78,15.80824167]
[1740000506661,83.0,167.83,167.78,15.80824167]
[1740000506858,83.0,167.83,167.81,9.84814167]
[1740000507973,83.0,167.83,167.82,5.9587]
[1740000508172,0.03,167.85,167.82,5.9587]
[1740000508364,0.03,167.85,167.83,9.84814167]
[1740000509413,0.03,167.85,167.84,9.84814167]
[1740000509897,0.03,167.85,167.84,15.80614167]
[1740000510272,0.0001,167.85,167.84,135.89870835]
[1740000513830,0.0001,167.88,167.87,20.0]
[1740000513996,0.0001,167.88,167.87,110.54814167]
[1740000514188,0.0001,167.88,167.87,116.74464167]
[1740000515325,0.0001,167.88,167.87,122.72264167]
[1740000515612,0.0001,167.88,167.87,128.67954167]
[1740000516492,0.0001,167.88,167.87,141.35119053]
[1740000516786,0.0001,167.88,167.87,153.51449053]
[1740000516998,0.03,167.91,167.9,20.0]
[1740000517625,0.03,167.91,167.9,25.9559]
[1740000517794,0.03,167.91,167.88,5.9562]
[1740000518318,0.03,167.91,167.84,98.6479342]
[1740000518319,9.87814167,167.91,167.85,9.84814167]
[1740000518494,0.03,167.91,167.85,9.84814167]
[1740000519403,0.03,167.91,167.85,15.80584167]
[1740000519711,9.84814167,167.88,167.84,6.0209]
[1740000520325,83.0,167.9,167.86,9.84814167]
[1740000520696,83.0,167.9,167.86,15.35802373]
[1740000521313,83.0,167.9,167.87,5.9569]